[Event "*** Titled Tuesday 3|2 Blitz"]
[Site "Chess.com"]
[Date "2016.06.07"]
[Round "6"]
[White "Fandorine"]
[Black "Bigfish1995"]
[Result "1-0"]
[WhiteElo "2594"]
[BlackElo "2608"]
[TimeControl "180+2"]
[EndTime "12:18:20 PDT"]
[Termination "Fandorine won on time"]

1. e4 {[%clk 0:03:01.3]} 1... c5 {[%clk 0:02:58.6]} 2. Nf3 {[%clk 0:03:00.4]}
2... Nc6 {[%clk 0:02:59.5]} 3. Bb5 {[%clk 0:03:01]} 3... e6 {[%clk 0:02:59.7]}
4. O-O {[%clk 0:02:57.5]} 4... Nge7 {[%clk 0:03:00.9]} 5. Re1 {[%clk 0:02:58.8]}
5... a6 {[%clk 0:03:01.7]} 6. Bf1 {[%clk 0:02:59.5]} 6... g6 {[%clk 0:03:01.7]}
7. c3 {[%clk 0:02:53.7]} 7... Bg7 {[%clk 0:03:00.3]} 8. d4 {[%clk 0:02:55.3]}
8... cxd4 {[%clk 0:02:50.1]} 9. cxd4 {[%clk 0:02:57.2]} 9... d5 {[%clk
0:02:50.3]} 10. e5 {[%clk 0:02:58.5]} 10... O-O {[%clk 0:02:51.3]} 11. Nc3
{[%clk 0:02:59.9]} 11... h6 {[%clk 0:02:44.3]} 12. Bd3 {[%clk 0:02:53.2]} 12...
Nf5 {[%clk 0:02:39.1]} 13. Bc2 {[%clk 0:02:45.8]} 13... b5 {[%clk 0:02:39.1]}
14. a3 {[%clk 0:02:44.7]} 14... Ra7 {[%clk 0:02:37.9]} 15. Bxf5 {[%clk
0:02:37.2]} 15... exf5 {[%clk 0:02:38.3]} 16. h4 {[%clk 0:02:38.8]} 16... Be6
{[%clk 0:02:34]} 17. Bf4 {[%clk 0:02:39.6]} 17... Kh7 {[%clk 0:02:33.5]} 18. Rc1
{[%clk 0:02:38]} 18... Rc7 {[%clk 0:02:33.7]} 19. Ne2 {[%clk 0:02:25.3]} 19...
Na5 {[%clk 0:02:33.8]} 20. Rxc7 {[%clk 0:02:19.1]} 20... Qxc7 {[%clk 0:02:34.1]}
21. Bd2 {[%clk 0:02:20.8]} 21... Nc4 {[%clk 0:02:34.4]} 22. Bb4 {[%clk
0:02:20.3]} 22... Rc8 {[%clk 0:02:31.5]} 23. Qb1 {[%clk 0:02:21.4]} 23... a5
{[%clk 0:02:32]} 24. Bc5 {[%clk 0:02:16.9]} 24... Nxe5 {[%clk 0:02:26.1]} 25.
dxe5 {[%clk 0:02:10.5]} 25... Qxc5 {[%clk 0:02:24.9]} 26. Ned4 {[%clk
0:02:10.1]} 26... Qb6 {[%clk 0:02:23.7]} 27. Qd3 {[%clk 0:01:47.8]} 27... b4
{[%clk 0:02:08.6]} 28. h5 {[%clk 0:01:40.7]} 28... Rc4 {[%clk 0:02:04]} 29.
hxg6+ {[%clk 0:01:06.7]} 29... fxg6 {[%clk 0:02:05]} 30. axb4 {[%clk 0:01:02.8]}
30... Rxb4 {[%clk 0:01:57.4]} 31. b3 {[%clk 0:01:04]} 31... Bc8 {[%clk
0:01:45.7]} 32. Rc1 {[%clk 0:00:39.9]} 32... Bd7 {[%clk 0:01:36.7]} 33. Qe3
{[%clk 0:00:31.7]} 33... a4 {[%clk 0:01:21.1]} 34. bxa4 {[%clk 0:00:21.8]} 34...
Bxa4 {[%clk 0:01:19.3]} 35. Qd3 {[%clk 0:00:06.4]} 35... Bb5 {[%clk 0:00:54]}
36. Nxb5 {[%clk 0:00:05.8]} 36... Rxb5 {[%clk 0:00:55.1]} 37. Nd4 {[%clk
0:00:04.9]} 37... Rb4 {[%clk 0:00:54.1]} 38. Nf3 {[%clk 0:00:05.6]} 38... Rb2
{[%clk 0:00:53.9]} 39. Rc2 {[%clk 0:00:03.7]} 39... Rb1+ {[%clk 0:00:39.9]} 40.
Kh2 {[%clk 0:00:05]} 40... Rf1 {[%clk 0:00:39.5]} 41. Qxf1 {[%clk 0:00:04.5]}
41... Qb3 {[%clk 0:00:39.1]} 42. Qd1 {[%clk 0:00:04.7]} 42... g5 {[%clk
0:00:38.3]} 43. Rd2 {[%clk 0:00:05.9]} 43... Qc3 {[%clk 0:00:36.2]} 44. Rd3
{[%clk 0:00:06.9]} 44... Qc4 {[%clk 0:00:33.4]} 45. Rd4 {[%clk 0:00:07.9]} 45...
Qc5 {[%clk 0:00:34.4]} 46. Rxd5 {[%clk 0:00:09.2]} 46... Qxf2 {[%clk 0:00:35.5]}
47. Qd3 {[%clk 0:00:10.7]} 47... Kg6 {[%clk 0:00:32.2]} 48. Rd6+ {[%clk
0:00:11.6]} 48... Kh5 {[%clk 0:00:32.8]} 49. Qxf5 {[%clk 0:00:11]} 49... Bxe5+
{[%clk 0:00:32.6]} 50. Qxe5 {[%clk 0:00:07.3]} 50... Qc2 {[%clk 0:00:20.5]} 51.
Rxh6+ {[%clk 0:00:06.6]} 51... Kxh6 {[%clk 0:00:21.4]} 52. Qxg5+ {[%clk
0:00:08.1]} 52... Kh7 {[%clk 0:00:23]} 53. Qh4+ {[%clk 0:00:09.4]} 53... Kg8
{[%clk 0:00:24.5]} 54. Qg3+ {[%clk 0:00:10.2]} 54... Kf7 {[%clk 0:00:25.9]} 55.
Qf4+ {[%clk 0:00:11.6]} 55... Ke6 {[%clk 0:00:26.9]} 56. Ng5+ {[%clk 0:00:11.5]}
56... Kd5 {[%clk 0:00:27.9]} 57. Qe4+ {[%clk 0:00:11.3]} 57... Qxe4 {[%clk
0:00:28.5]} 58. Nxe4 {[%clk 0:00:13.2]} 58... Kxe4 {[%clk 0:00:30.1]} 59. Kg3
{[%clk 0:00:15]} 59... Kf5 {[%clk 0:00:28.2]} 60. Kh4 {[%clk 0:00:16.2]} 60...
Kf6 {[%clk 0:00:12.9]} 61. Kh5 {[%clk 0:00:17.6]} 61... Kf5 {[%clk 0:00:13.4]}
62. g4+ {[%clk 0:00:18.5]} 62... Kf6 {[%clk 0:00:14.9]} 63. Kh6 {[%clk
0:00:20.1]} 63... Kf7 {[%clk 0:00:16.4]} 64. g5 {[%clk 0:00:20.7]} 64... Kg8
{[%clk 0:00:17.8]} 65. Kg6 {[%clk 0:00:22.3]} 65... Kh8 {[%clk 0:00:18.6]} 66.
Kf7 {[%clk 0:00:22.3]} 1-0

[Event "*** Titled Tuesday 3|2 Blitz"]
[Site "Chess.com"]
[Date "2016.06.07"]
[Round "7"]
[White "kereswasbest"]
[Black "cassoulet"]
[Result "0-1"]
[WhiteElo "2121"]
[BlackElo "2319"]
[TimeControl "180+2"]
[EndTime "12:20:20 PDT"]
[Termination "cassoulet won by resignation"]

1. d4 {[%clk 0:03:01.9]} 1... d5 {[%clk 0:03:00.7]} 2. c4 {[%clk 0:03:03.3]}
2... e6 {[%clk 0:03:02.2]} 3. Nc3 {[%clk 0:03:00]} 3... Nf6 {[%clk 0:03:03.5]}
4. Bg5 {[%clk 0:03:01.1]} 4... Be7 {[%clk 0:03:04.4]} 5. e3 {[%clk 0:03:02.1]}
5... O-O {[%clk 0:03:06]} 6. Nf3 {[%clk 0:03:03]} 6... Nbd7 {[%clk 0:03:07.5]}
7. Bd3 {[%clk 0:03:00.7]} 7... a6 {[%clk 0:03:08.6]} 8. O-O {[%clk 0:03:01]}
8... dxc4 {[%clk 0:03:09.4]} 9. Bxc4 {[%clk 0:03:01.5]} 9... b5 {[%clk
0:03:11.3]} 10. Bb3 {[%clk 0:03:01.5]} 10... Bb7 {[%clk 0:03:12.7]} 11. Qe2
{[%clk 0:03:01.9]} 11... c5 {[%clk 0:02:56.8]} 12. Rad1 {[%clk 0:03:01.7]} 12...
c4 {[%clk 0:02:57.4]} 13. Bc2 {[%clk 0:03:02.6]} 13... b4 {[%clk 0:02:58]} 14.
Na4 {[%clk 0:02:57]} 14... Qa5 {[%clk 0:02:58.4]} 15. b3 {[%clk 0:02:52.5]}
15... Bxf3 {[%clk 0:02:58.2]} 0-1

[Event "*** Titled Tuesday 3|2 Blitz"]
[Site "Chess.com"]
[Date "2016.06.07"]
[Round "7"]
[White "dretch"]
[Black "OldweakGM"]
[Result "1-0"]
[WhiteElo "2607"]
[BlackElo "2601"]
[TimeControl "180+2"]
[EndTime "12:20:21 PDT"]
[Termination "dretch won by resignation"]

1. d4 {[%clk 0:03:01.9]} 1... d6 {[%clk 0:03:01.3]} 2. Nf3 {[%clk 0:03:02.8]}
2... Bg4 {[%clk 0:03:01.7]} 3. e4 {[%clk 0:03:03.1]} 3... e6 {[%clk 0:03:01.3]}
4. Nc3 {[%clk 0:03:00.2]} 4... Nf6 {[%clk 0:03:02.1]} 5. h3 {[%clk 0:02:58.2]}
5... Bh5 {[%clk 0:03:03.3]} 6. Bg5 {[%clk 0:02:58.6]} 6... Be7 {[%clk
0:03:03.5]} 7. Qe2 {[%clk 0:02:58.8]} 7... c6 {[%clk 0:03:04]} 8. Bxf6 {[%clk
0:02:47.8]} 8... Bxf6 {[%clk 0:03:04.8]} 9. g4 {[%clk 0:02:48.7]} 9... Bg6
{[%clk 0:03:06.1]} 10. h4 {[%clk 0:02:48.2]} 10... h5 {[%clk 0:02:53.6]} 11. g5
{[%clk 0:02:46.7]} 11... Be7 {[%clk 0:02:55.5]} 12. O-O-O {[%clk 0:02:43.3]}
12... Bf6 {[%clk 0:02:57.4]} 13. gxf6 {[%clk 0:02:42.2]} 1-0

[Event "*** Titled Tuesday 3|2 Blitz"]
[Site "Chess.com"]
[Date "2016.06.07"]
[Round "7"]
[White "Grootneus"]
[Black "ShimanovAlex"]
[Result "0-1"]
[WhiteElo "2092"]
[BlackElo "2644"]
[TimeControl "180+2"]
[EndTime "12:23:38 PDT"]
[Termination "ShimanovAlex won by resignation"]

1. e4 {[%clk 0:03:01.9]} 1... e5 {[%clk 0:02:59.2]} 2. Nf3 {[%clk 0:03:02]} 2...
Qe7 {[%clk 0:03:00.3]} 3. Bc4 {[%clk 0:02:57.1]} 3... d6 {[%clk 0:03:00.7]} 4.
Nc3 {[%clk 0:02:52]} 4... c6 {[%clk 0:03:00.9]} 5. d4 {[%clk 0:02:52.2]} 5...
Bg4 {[%clk 0:03:01.3]} 6. dxe5 {[%clk 0:02:46.6]} 6... dxe5 {[%clk 0:02:48.9]}
7. O-O {[%clk 0:02:42.3]} 7... Nf6 {[%clk 0:02:49.9]} 8. h3 {[%clk 0:02:38]}
8... Bh5 {[%clk 0:02:50.7]} 9. Bg5 {[%clk 0:02:26.7]} 9... h6 {[%clk 0:02:50.2]}
10. Bh4 {[%clk 0:02:27.8]} 10... Nbd7 {[%clk 0:02:49.2]} 11. Qd3 {[%clk
0:02:24.5]} 11... g5 {[%clk 0:02:42.7]} 12. Bg3 {[%clk 0:02:25.3]} 12... Bg7
{[%clk 0:02:43.8]} 13. Rad1 {[%clk 0:02:09.1]} 13... Bg6 {[%clk 0:02:41.9]} 14.
Rfe1 {[%clk 0:02:08.1]} 14... Nh5 {[%clk 0:02:41]} 15. Bh2 {[%clk 0:02:04.2]}
15... Nf4 {[%clk 0:02:41.9]} 16. Bxf4 {[%clk 0:02:03]} 16... exf4 {[%clk
0:02:42.7]} 17. Qd6 {[%clk 0:01:49.3]} 17... Qxd6 {[%clk 0:02:38.3]} 18. Rxd6
{[%clk 0:01:51.2]} 18... Ke7 {[%clk 0:02:40]} 19. Red1 {[%clk 0:01:52.3]} 19...
Rad8 {[%clk 0:02:40.8]} 20. a4 {[%clk 0:01:12]} 20... Ne5 {[%clk 0:02:40.5]} 21.
Nxe5 {[%clk 0:01:07.7]} 21... Bxe5 {[%clk 0:02:42.4]} 22. Rxd8 {[%clk 0:01:09]}
22... Rxd8 {[%clk 0:02:42.7]} 23. Rxd8 {[%clk 0:01:10.9]} 23... Kxd8 {[%clk
0:02:44.6]} 24. Bd3 {[%clk 0:01:10.8]} 24... Bxc3 {[%clk 0:02:44.5]} 25. bxc3
{[%clk 0:01:11.6]} 25... a5 {[%clk 0:02:45]} 26. Kf1 {[%clk 0:01:12.5]} 26...
Ke7 {[%clk 0:02:45.9]} 27. Ke2 {[%clk 0:01:13.1]} 27... Kd6 {[%clk 0:02:47]} 28.
h4 {[%clk 0:01:07.4]} 28... Ke5 {[%clk 0:02:47.3]} 29. hxg5 {[%clk 0:01:05.6]}
29... hxg5 {[%clk 0:02:49.2]} 30. g3 {[%clk 0:01:07]} 30... Bxe4 {[%clk
0:02:47.5]} 31. Bc4 {[%clk 0:01:05.6]} 31... f5 {[%clk 0:02:46.8]} 32. Bf7
{[%clk 0:01:04.3]} 32... Bxc2 {[%clk 0:02:46.7]} 33. Be8 {[%clk 0:01:05.5]}
33... Bxa4 {[%clk 0:02:47]} 34. Bd7 {[%clk 0:01:06.4]} 0-1

[Event "*** Titled Tuesday 3|2 Blitz"]
[Site "Chess.com"]
[Date "2016.06.07"]
[Round "7"]
[White "yopino"]
[Black "Aguiar94"]
[Result "0-1"]
[WhiteElo "2224"]
[BlackElo "2342"]
[TimeControl "180+2"]
[EndTime "12:23:45 PDT"]
[Termination "Aguiar94 won by resignation"]

1. e4 {[%clk 0:03:01.9]} 1... c5 {[%clk 0:03:00.2]} 2. Nc3 {[%clk 0:03:02.3]}
2... e6 {[%clk 0:03:00.6]} 3. g3 {[%clk 0:03:02.5]} 3... d5 {[%clk 0:03:00.4]}
4. exd5 {[%clk 0:03:04.4]} 4... exd5 {[%clk 0:02:59.3]} 5. Bg2 {[%clk
0:03:04.7]} 5... Nf6 {[%clk 0:02:57.1]} 6. d3 {[%clk 0:03:05.7]} 6... Be7 {[%clk
0:02:47]} 7. Nge2 {[%clk 0:03:04.7]} 7... O-O {[%clk 0:02:46.4]} 8. O-O {[%clk
0:03:05.5]} 8... d4 {[%clk 0:02:42.9]} 9. Ne4 {[%clk 0:03:05.8]} 9... Nxe4
{[%clk 0:02:36.2]} 10. dxe4 {[%clk 0:03:07.7]} 10... Nc6 {[%clk 0:02:35.8]} 11.
Nf4 {[%clk 0:03:08]} 11... Bd6 {[%clk 0:02:33.7]} 12. Nd5 {[%clk 0:03:08.3]}
12... Re8 {[%clk 0:02:31.7]} 13. f4 {[%clk 0:02:43.5]} 13... Be6 {[%clk
0:02:30.1]} 14. c4 {[%clk 0:02:43.8]} 14... dxc3 {[%clk 0:02:26.4]} 15. Nxc3
{[%clk 0:02:43.9]} 15... Qd7 {[%clk 0:02:16.3]} 16. Be3 {[%clk 0:02:07.9]} 16...
Rad8 {[%clk 0:02:05.4]} 17. Nb5 {[%clk 0:01:37.2]} 17... Bc4 {[%clk 0:01:53.1]}
18. Nxd6 {[%clk 0:01:36.7]} 18... Bxf1 {[%clk 0:01:52.4]} 0-1

[Event "*** Titled Tuesday 3|2 Blitz"]
[Site "Chess.com"]
[Date "2016.06.07"]
[Round "7"]
[White "KamilPlichta"]
[Black "VMikhalevski"]
[Result "1-0"]
[WhiteElo "2376"]
[BlackElo "2409"]
[TimeControl "180+2"]
[EndTime "12:23:56 PDT"]
[Termination "KamilPlichta won by resignation"]

1. d4 {[%clk 0:03:01.9]} 1... Nf6 {[%clk 0:02:59.9]} 2. g4 {[%clk 0:03:02.7]}
2... h6 {[%clk 0:02:55.9]} 3. h3 {[%clk 0:03:02.7]} 3... c5 {[%clk 0:02:54.1]}
4. Nf3 {[%clk 0:02:57.8]} 4... cxd4 {[%clk 0:02:53.7]} 5. Nxd4 {[%clk
0:02:58.7]} 5... Nc6 {[%clk 0:02:54.8]} 6. Bg2 {[%clk 0:03:00.1]} 6... Qb6
{[%clk 0:02:53.1]} 7. Nb3 {[%clk 0:03:00.6]} 7... d5 {[%clk 0:02:52.1]} 8. Nc3
{[%clk 0:02:58.7]} 8... e6 {[%clk 0:02:48.4]} 9. e4 {[%clk 0:02:59.7]} 9... dxe4
{[%clk 0:02:47.5]} 10. Nxe4 {[%clk 0:03:00.1]} 10... Nxe4 {[%clk 0:02:44.8]} 11.
Bxe4 {[%clk 0:03:01.3]} 11... Qb4+ {[%clk 0:02:45.8]} 12. Nd2 {[%clk 0:03:00.9]}
12... e5 {[%clk 0:02:41.3]} 13. c3 {[%clk 0:02:58.8]} 13... Qb5 {[%clk
0:02:35.3]} 14. a4 {[%clk 0:02:55.1]} 14... Qb6 {[%clk 0:02:34.4]} 15. Nc4
{[%clk 0:02:51.4]} 15... Qc7 {[%clk 0:02:27.1]} 16. Qf3 {[%clk 0:02:49.1]} 16...
Be6 {[%clk 0:02:17.7]} 17. Ne3 {[%clk 0:02:43.3]} 17... Rd8 {[%clk 0:02:16.1]}
18. O-O {[%clk 0:02:33]} 18... h5 {[%clk 0:02:09.5]} 19. gxh5 {[%clk 0:02:22.4]}
19... Qe7 {[%clk 0:01:40.4]} 20. Nf5 {[%clk 0:02:08.1]} 20... Bxf5 {[%clk
0:01:27.1]} 21. Qxf5 {[%clk 0:01:58.2]} 21... Qh4 {[%clk 0:01:20.7]} 22. Bg5
{[%clk 0:01:47.1]} 22... Qxh5 {[%clk 0:01:12.6]} 23. Bxc6+ {[%clk 0:01:48.3]}
23... bxc6 {[%clk 0:01:05.2]} 24. Qxe5+ {[%clk 0:01:49.5]} 1-0

[Event "*** Titled Tuesday 3|2 Blitz"]
[Site "Chess.com"]
[Date "2016.06.07"]
[Round "7"]
[White "Bigfish1995"]
[Black "Semetey"]
[Result "1-0"]
[WhiteElo "2613"]
[BlackElo "2462"]
[TimeControl "180+2"]
[EndTime "12:24:19 PDT"]
[Termination "Bigfish1995 won by checkmate"]

1. Nf3 {[%clk 0:03:01.9]} 1... d5 {[%clk 0:02:59.7]} 2. g3 {[%clk 0:03:01]} 2...
Nf6 {[%clk 0:03:00.9]} 3. Bg2 {[%clk 0:03:02.7]} 3... c6 {[%clk 0:03:02.5]} 4.
O-O {[%clk 0:03:04.4]} 4... Bg4 {[%clk 0:03:03.7]} 5. d3 {[%clk 0:03:06.1]} 5...
Nbd7 {[%clk 0:03:04.9]} 6. Nbd2 {[%clk 0:03:07.8]} 6... e5 {[%clk 0:03:06]} 7.
e4 {[%clk 0:03:09.3]} 7... Bd6 {[%clk 0:03:07.2]} 8. b3 {[%clk 0:03:09.1]} 8...
O-O {[%clk 0:03:07.8]} 9. Bb2 {[%clk 0:03:10.8]} 9... Re8 {[%clk 0:03:09]} 10.
h3 {[%clk 0:03:12]} 10... Bh5 {[%clk 0:03:10.1]} 11. Qe1 {[%clk 0:03:13.3]}
11... Qc7 {[%clk 0:03:10.2]} 12. Nh4 {[%clk 0:03:14.3]} 12... Rad8 {[%clk
0:02:55.2]} 13. a3 {[%clk 0:03:09.5]} 13... a5 {[%clk 0:02:49.3]} 14. Kh2 {[%clk
0:03:09.2]} 14... b5 {[%clk 0:02:45.5]} 15. Nf5 {[%clk 0:03:07.9]} 15... Bf8
{[%clk 0:02:44.8]} 16. Nf3 {[%clk 0:03:03.4]} 16... dxe4 {[%clk 0:02:43.3]} 17.
dxe4 {[%clk 0:03:04.1]} 17... Nc5 {[%clk 0:02:06.2]} 18. N3h4 {[%clk 0:03:03.4]}
18... Rd7 {[%clk 0:01:41.8]} 19. Bc3 {[%clk 0:03:01.4]} 19... Nb7 {[%clk
0:01:37.3]} 20. f4 {[%clk 0:02:52.2]} 20... exf4 {[%clk 0:01:32.3]} 21. gxf4
{[%clk 0:02:53.3]} 21... Bg6 {[%clk 0:00:44.7]} 22. Ng3 {[%clk 0:02:52.1]} 22...
Bxe4 {[%clk 0:00:33.9]} 23. Bxe4 {[%clk 0:02:33.7]} 23... Nxe4 {[%clk
0:00:32.7]} 24. Nxe4 {[%clk 0:02:33.1]} 24... Nc5 {[%clk 0:00:31.8]} 25. Nf6+
{[%clk 0:02:33.6]} 25... gxf6 {[%clk 0:00:29.8]} 26. Qxe8 {[%clk 0:02:31.5]}
26... Ne6 {[%clk 0:00:22.9]} 27. Rg1+ {[%clk 0:02:31.5]} 27... Ng7 {[%clk
0:00:23.9]} 28. Rxg7+ {[%clk 0:02:31.6]} 28... Kxg7 {[%clk 0:00:24.5]} 29. Rg1+
{[%clk 0:02:33.2]} 29... Kh6 {[%clk 0:00:24.9]} 30. Nf5+ {[%clk 0:02:31.8]}
30... Kh5 {[%clk 0:00:25.6]} 31. Qe2# {[%clk 0:02:32.8]} 1-0

[Event "*** Titled Tuesday 3|2 Blitz"]
[Site "Chess.com"]
[Date "2016.06.07"]
[Round "7"]
[White "Boryboy"]
[Black "1stSecond"]
[Result "0-1"]
[WhiteElo "2534"]
[BlackElo "2570"]
[TimeControl "180+2"]
[EndTime "12:24:22 PDT"]
[Termination "1stSecond won by resignation"]

1. d4 {[%clk 0:03:01.9]} 1... Nf6 {[%clk 0:03:00]} 2. Nf3 {[%clk 0:02:59.8]}
2... e6 {[%clk 0:03:00.5]} 3. g3 {[%clk 0:03:00.6]} 3... b5 {[%clk 0:03:02]} 4.
Bg2 {[%clk 0:03:01.6]} 4... Bb7 {[%clk 0:03:03.6]} 5. O-O {[%clk 0:02:59.3]}
5... d5 {[%clk 0:03:04.8]} 6. a4 {[%clk 0:02:57.9]} 6... b4 {[%clk 0:03:05]} 7.
a5 {[%clk 0:02:58.7]} 7... Bd6 {[%clk 0:03:02.2]} 8. c3 {[%clk 0:02:58.8]} 8...
bxc3 {[%clk 0:03:02]} 9. Nxc3 {[%clk 0:02:59.6]} 9... O-O {[%clk 0:03:02.6]} 10.
Nb5 {[%clk 0:03:00.7]} 10... Ba6 {[%clk 0:02:58.5]} 11. Nxd6 {[%clk 0:03:01.9]}
11... cxd6 {[%clk 0:03:00.4]} 12. b3 {[%clk 0:02:46]} 12... Nc6 {[%clk
0:02:56.2]} 13. Bd2 {[%clk 0:02:44.3]} 13... Rb8 {[%clk 0:02:50.3]} 14. Re1
{[%clk 0:02:40]} 14... Qd7 {[%clk 0:02:44.4]} 15. Bf1 {[%clk 0:02:11.6]} 15...
Qb7 {[%clk 0:02:41.3]} 16. Rb1 {[%clk 0:02:03.2]} 16... Rfc8 {[%clk 0:02:41.9]}
17. e3 {[%clk 0:02:04.2]} 17... Bxf1 {[%clk 0:02:42.6]} 18. Rxf1 {[%clk
0:02:05.5]} 18... Qb5 {[%clk 0:02:39.2]} 19. b4 {[%clk 0:01:42.9]} 19... Ne4
{[%clk 0:02:39.9]} 20. Be1 {[%clk 0:01:42.4]} 20... a6 {[%clk 0:02:39.7]} 21.
Qb3 {[%clk 0:01:15]} 21... Nxa5 {[%clk 0:02:39.3]} 22. Qa2 {[%clk 0:01:15.7]}
22... Nc4 {[%clk 0:02:38.1]} 23. Ra1 {[%clk 0:01:17.1]} 23... Rc6 {[%clk
0:02:37.7]} 24. Nh4 {[%clk 0:01:15.2]} 24... g5 {[%clk 0:02:33.5]} 25. Nf3
{[%clk 0:01:11.2]} 25... h6 {[%clk 0:02:33.7]} 26. Qa4 {[%clk 0:01:08.5]} 26...
Qxa4 {[%clk 0:02:25.4]} 27. Rxa4 {[%clk 0:01:10.4]} 27... Nb2 {[%clk 0:02:26.9]}
28. Ra2 {[%clk 0:01:08.1]} 28... Nd3 {[%clk 0:02:28]} 29. Ra4 {[%clk 0:01:04.4]}
29... g4 {[%clk 0:02:25]} 30. Nh4 {[%clk 0:01:01.1]} 30... Rc1 {[%clk
0:02:25.7]} 31. Ng2 {[%clk 0:01:02.1]} 31... Ng5 {[%clk 0:02:24.4]} 32. Rxa6
{[%clk 0:00:45.2]} 32... Nh3+ {[%clk 0:02:21.7]} 0-1

[Event "*** Titled Tuesday 3|2 Blitz"]
[Site "Chess.com"]
[Date "2016.06.07"]
[Round "7"]
[White "gmcorrales"]
[Black "matej2221"]
[Result "0-1"]
[WhiteElo "2511"]
[BlackElo "2456"]
[TimeControl "180+2"]
[EndTime "12:25:10 PDT"]
[Termination "matej2221 won by resignation"]

1. e4 {[%clk 0:02:54.1]} 1... e5 {[%clk 0:03:01]} 2. Nf3 {[%clk 0:02:55.1]} 2...
Nc6 {[%clk 0:03:02.3]} 3. Bb5 {[%clk 0:02:55.7]} 3... a6 {[%clk 0:03:03.3]} 4.
Bxc6 {[%clk 0:02:57]} 4... dxc6 {[%clk 0:03:04.1]} 5. d4 {[%clk 0:02:58.3]} 5...
exd4 {[%clk 0:03:04.6]} 6. Qxd4 {[%clk 0:03:00.2]} 6... Qxd4 {[%clk 0:03:05.6]}
7. Nxd4 {[%clk 0:03:02.1]} 7... Bd7 {[%clk 0:03:07.2]} 8. Nc3 {[%clk 0:03:03]}
8... O-O-O {[%clk 0:03:08.9]} 9. Be3 {[%clk 0:03:03.6]} 9... Re8 {[%clk
0:03:10.5]} 10. O-O-O {[%clk 0:03:03.7]} 10... Bb4 {[%clk 0:03:08]} 11. Nde2
{[%clk 0:03:04.2]} 11... f5 {[%clk 0:03:05.9]} 12. exf5 {[%clk 0:03:04.5]} 12...
Bxf5 {[%clk 0:03:04.8]} 13. a3 {[%clk 0:03:05.9]} 13... Bd6 {[%clk 0:03:02.7]}
14. Bf4 {[%clk 0:03:02.2]} 14... Bc5 {[%clk 0:02:55.2]} 15. Nd4 {[%clk
0:03:00.4]} 15... Bg6 {[%clk 0:02:29.5]} 16. f3 {[%clk 0:02:55.7]} 16... Nf6
{[%clk 0:02:28.8]} 17. Nb3 {[%clk 0:02:48.4]} 17... Bb6 {[%clk 0:02:29.8]} 18.
Rhe1 {[%clk 0:02:47.7]} 18... Rxe1 {[%clk 0:01:50.9]} 19. Rxe1 {[%clk
0:02:49.6]} 19... Kd7 {[%clk 0:01:50.2]} 20. Na4 {[%clk 0:02:43.4]} 20... Ba7
{[%clk 0:01:24.9]} 21. Nac5+ {[%clk 0:02:41.1]} 21... Kc8 {[%clk 0:01:24.2]} 22.
Re7 {[%clk 0:02:40.4]} 22... Nd5 {[%clk 0:01:25.3]} 23. Rxg7 {[%clk 0:02:24.2]}
23... Nxf4 {[%clk 0:01:25.9]} 24. g3 {[%clk 0:02:25.3]} 24... Nh5 {[%clk
0:01:19.3]} 25. Re7 {[%clk 0:02:25.8]} 25... Re8 {[%clk 0:01:16.8]} 26. Rxe8+
{[%clk 0:02:24.9]} 26... Bxe8 {[%clk 0:01:18.7]} 27. Kd2 {[%clk 0:02:24.4]}
27... a5 {[%clk 0:01:13.3]} 28. Ne4 {[%clk 0:02:20.4]} 28... a4 {[%clk
0:01:08.4]} 29. Nc1 {[%clk 0:02:20.2]} 29... Bg6 {[%clk 0:01:08.6]} 30. Ng5
{[%clk 0:02:16.7]} 30... Bg1 {[%clk 0:01:04.9]} 31. g4 {[%clk 0:02:14.3]} 31...
Bxh2 {[%clk 0:00:39]} 32. gxh5 {[%clk 0:02:14.8]} 32... Bf4+ {[%clk 0:00:40.3]}
33. Kd1 {[%clk 0:02:16]} 33... Bxh5 {[%clk 0:00:38.6]} 34. Nh3 {[%clk
0:02:14.7]} 34... Bxf3+ {[%clk 0:00:39]} 35. Ne2 {[%clk 0:02:16.4]} 35... Bxe2+
{[%clk 0:00:32.9]} 36. Kxe2 {[%clk 0:02:17.3]} 36... Bc1 {[%clk 0:00:34.6]} 37.
b4 {[%clk 0:02:17.1]} 37... axb3 {[%clk 0:00:28.5]} 38. Kd3 {[%clk 0:02:19]}
38... b2 {[%clk 0:00:27.5]} 0-1

[Event "*** Titled Tuesday 3|2 Blitz"]
[Site "Chess.com"]
[Date "2016.06.07"]
[Round "7"]
[White "FearlessKing64"]
[Black "Masterbeaterr"]
[Result "0-1"]
[WhiteElo "2068"]
[BlackElo "2319"]
[TimeControl "180+2"]
[EndTime "12:26:05 PDT"]
[Termination "Masterbeaterr won on time"]

1. e4 {[%clk 0:03:00.6]} 1... e5 {[%clk 0:03:00.7]} 2. Nf3 {[%clk 0:02:59.6]}
2... Nc6 {[%clk 0:03:01.1]} 3. Bc4 {[%clk 0:03:00.9]} 3... Nf6 {[%clk
0:03:00.5]} 4. d4 {[%clk 0:03:01.7]} 4... exd4 {[%clk 0:03:00.2]} 5. e5 {[%clk
0:03:03.6]} 5... Ne4 {[%clk 0:03:00.6]} 6. Bd5 {[%clk 0:03:01.6]} 6... Nc5
{[%clk 0:03:00.1]} 7. O-O {[%clk 0:03:02]} 7... Ne6 {[%clk 0:02:59.4]} 8. Re1
{[%clk 0:03:01.4]} 8... Be7 {[%clk 0:02:59.9]} 9. Nbd2 {[%clk 0:03:02]} 9... d6
{[%clk 0:02:59.2]} 10. Bxc6+ {[%clk 0:03:01.4]} 10... bxc6 {[%clk 0:02:58.7]}
11. exd6 {[%clk 0:02:39.8]} 11... cxd6 {[%clk 0:02:57.5]} 12. Ne4 {[%clk
0:02:28.5]} 12... c5 {[%clk 0:02:56.1]} 13. c3 {[%clk 0:02:26.6]} 13... dxc3
{[%clk 0:02:53]} 14. Qd5 {[%clk 0:02:17.8]} 14... Rb8 {[%clk 0:02:50]} 15. bxc3
{[%clk 0:02:12.5]} 15... O-O {[%clk 0:02:50.4]} 16. c4 {[%clk 0:01:55.8]} 16...
Bb7 {[%clk 0:02:49.3]} 17. Qd3 {[%clk 0:01:57.2]} 17... Bxe4 {[%clk 0:02:46.9]}
18. Rxe4 {[%clk 0:01:50.5]} 18... Bf6 {[%clk 0:02:48.1]} 19. Rb1 {[%clk
0:01:31.8]} 19... Rxb1 {[%clk 0:02:48.5]} 20. Qxb1 {[%clk 0:01:33]} 20... d5
{[%clk 0:02:50.4]} 21. cxd5 {[%clk 0:01:27.8]} 21... Qxd5 {[%clk 0:02:52.3]} 22.
Re1 {[%clk 0:01:26.7]} 22... Nd4 {[%clk 0:02:43.4]} 23. Nd2 {[%clk 0:01:17]}
23... c4 {[%clk 0:02:38.1]} 24. Ne4 {[%clk 0:01:17.5]} 24... Bd8 {[%clk
0:02:11.7]} 25. Bb2 {[%clk 0:01:14.9]} 25... Bb6 {[%clk 0:02:10.8]} 26. Rd1
{[%clk 0:00:50.1]} 26... Re8 {[%clk 0:01:59.3]} 27. Nc3 {[%clk 0:00:46.6]} 27...
Qg5 {[%clk 0:01:48.7]} 28. h3 {[%clk 0:00:27.5]} 28... Nf3+ {[%clk 0:01:40.5]}
29. Kh1 {[%clk 0:00:21.4]} 29... Nh4 {[%clk 0:01:37]} 30. Rg1 {[%clk 0:00:12.3]}
30... Bxf2 {[%clk 0:01:33.4]} 31. Qc1 {[%clk 0:00:07.1]} 31... Qg3 {[%clk
0:01:23.7]} 32. Qf1 {[%clk 0:00:03.4]} 32... Bxg1 {[%clk 0:01:22.3]} 33. Qxg1
{[%clk 0:00:05.3]} 33... Re1 {[%clk 0:01:21.8]} 0-1